[Event "Polofinale MCR junioru 2023"]
[Site "Czech Republic"]
[Date "2023.11.14"]
[Round "4.6"]
[White "Winter, Ondrej"]
[Black "Pecka, Jan"]
[Result "1-0"]
[TimeControl "90 min per 40 moves + 15 min + 30 sec / move from move 1"]
[WhiteFideId "23702192"]
[BlackFideId "23712520"]
[WhiteElo "2163"]
[BlackElo "1999"]

1. e4 {[%clk 01:30:53]} {[%emt 00:00:07]} c5 {[%clk 01:23:03]} {[%emt
00:07:58]} 2. Nf3 {[%clk 01:31:14]} {[%emt 00:00:09]} d6 {[%clk 01:23:24]}
{[%emt 00:00:08]} 3. Bb5+ {[%clk 01:31:31]} {[%emt 00:00:13]} Bd7 {[%clk
01:23:47]} {[%emt 00:00:07]} 4. Bxd7+ {[%clk 01:31:53]} {[%emt 00:00:09]} Qxd7
{[%clk 01:24:12]} {[%emt 00:00:05]} 5. O-O {[%clk 01:32:14]} {[%emt 00:00:08]}
Nf6 {[%clk 01:24:31]} {[%emt 00:00:12]} 6. Re1 {[%clk 01:32:38]} {[%emt
00:00:06]} e6 {[%clk 01:24:43]} {[%emt 00:00:17]} 7. c4 {[%clk 01:32:20]}
{[%emt 00:00:48]} Nc6 {[%clk 01:23:26]} {[%emt 00:01:48]} 8. Nc3 {[%clk
01:32:43]} {[%emt 00:00:07]} Be7 {[%clk 01:23:46]} {[%emt 00:00:10]} 9. d3
{[%clk 01:31:33]} {[%emt 00:01:40]} O-O {[%clk 01:24:07]} {[%emt 00:00:09]} 10.
a3 {[%clk 01:30:21]} {[%emt 00:01:42]} Ng4 {[%clk 01:11:03]} {[%emt 00:13:33]}
11. Rb1 {[%clk 01:27:29]} {[%emt 00:03:22]} Nge5 {[%clk 01:08:59]} {[%emt
00:02:34]} 12. b4 {[%clk 01:21:21]} {[%emt 00:06:38]} Nxf3+ {[%clk 01:08:32]}
{[%emt 00:00:57]} 13. Qxf3 {[%clk 01:21:39]} {[%emt 00:00:12]} Bf6 {[%clk
01:05:43]} {[%emt 00:03:19]} 14. Bd2 {[%clk 01:20:14]} {[%emt 00:01:55]} Bxc3
{[%clk 00:58:12]} {[%emt 00:08:01]} 15. Bxc3 {[%clk 01:18:55]} {[%emt
00:01:49]} e5 {[%clk 00:56:33]} {[%emt 00:02:09]} 16. Qg3 {[%clk 01:15:38]}
{[%emt 00:03:46]} f6 {[%clk 00:54:03]} {[%emt 00:03:01]} 17. f4 {[%clk
01:14:22]} {[%emt 00:01:46]} Rae8 {[%clk 00:52:31]} {[%emt 00:02:02]} 18. f5
{[%clk 01:12:06]} {[%emt 00:02:46]} Rb8 {[%clk 00:47:10]} {[%emt 00:05:52]} 19.
Qf2 {[%clk 01:11:34]} {[%emt 00:01:02]} b6 {[%clk 00:45:55]} {[%emt 00:01:45]}
20. h4 {[%clk 01:04:38]} {[%emt 00:07:25]} Kf7 {[%clk 00:44:45]} {[%emt
00:01:41]} 21. Qe2 {[%clk 01:01:47]} {[%emt 00:03:21]} Ke7 {[%clk 00:43:08]}
{[%emt 00:02:06]} 22. b5 {[%clk 00:57:44]} {[%emt 00:04:33]} Nd4 {[%clk
00:42:34]} {[%emt 00:01:04]} 23. Bxd4 {[%clk 00:58:01]} {[%emt 00:00:13]} cxd4
{[%clk 00:41:32]} {[%emt 00:01:32]} 24. Qh5 {[%clk 00:55:16]} {[%emt 00:03:16]}
Qe8 {[%clk 00:38:26]} {[%emt 00:03:36]} 25. Qg4 {[%clk 00:53:21]} {[%emt
00:02:25]} Rg8 {[%clk 00:38:38]} {[%emt 00:00:17]} 26. a4 {[%clk 00:52:54]}
{[%emt 00:00:57]} Qd7 {[%clk 00:32:21]} {[%emt 00:06:48]} 27. Qh5 {[%clk
00:52:19]} {[%emt 00:01:05]} Qe8 {[%clk 00:32:25]} {[%emt 00:00:26]} 28. Qf3
{[%clk 00:52:43]} {[%emt 00:00:05]} Qd7 {[%clk 00:32:46]} {[%emt 00:00:10]} 29.
g4 {[%clk 00:49:18]} {[%emt 00:03:55]} h6 {[%clk 00:32:10]} {[%emt 00:01:06]}
30. Kf2 {[%clk 00:48:18]} {[%emt 00:01:30]} Rh8 {[%clk 00:32:16]} {[%emt
00:00:23]} 31. Ra1 {[%clk 00:45:48]} {[%emt 00:03:00]} Kd8 {[%clk 00:29:49]}
{[%emt 00:02:57]} 32. a5 {[%clk 00:45:52]} {[%emt 00:00:27]} Kc7 {[%clk
00:29:45]} {[%emt 00:00:34]} 33. Ra3 {[%clk 00:45:30]} {[%emt 00:00:52]} Kd8
{[%clk 00:28:12]} {[%emt 00:02:03]} 34. Rea1 {[%clk 00:44:50]} {[%emt
00:01:09]} Ke7 {[%clk 00:28:16]} {[%emt 00:00:26]} 35. Qd1 {[%clk 00:42:48]}
{[%emt 00:02:32]} Rb7 {[%clk 00:27:16]} {[%emt 00:01:30]} 36. R1a2 {[%clk
00:43:04]} {[%emt 00:00:14]} Rhb8 {[%clk 00:27:20]} {[%emt 00:00:27]} 37. Kf3
{[%clk 00:43:05]} {[%emt 00:00:29]} Qc7 {[%clk 00:27:40]} {[%emt 00:00:09]} 38.
a6 {[%clk 00:42:59]} {[%emt 00:00:37]} 1-0

[Event "Polofinale MCR junioru 2023"]
[Site "Czech Republic"]
[Date "2023.11.14"]
[Round "4.7"]
[White "Mrazek, Adam"]
[Black "Vojta, Jakub"]
[Result "0-1"]
[TimeControl "90 min per 40 moves + 15 min + 30 sec / move from move 1"]
[WhiteFideId "23725010"]
[BlackFideId "382515"]
[WhiteElo "1643"]
[BlackElo "2267"]

1. c4 {[%clk 01:30:56]} {[%emt 00:00:04]} e5 {[%clk 01:30:46]} {[%emt
00:00:14]} 2. g3 {[%clk 01:31:18]} {[%emt 00:00:08]} Nc6 {[%clk 01:31:01]}
{[%emt 00:00:15]} 3. Bg2 {[%clk 01:31:32]} {[%emt 00:00:16]} g6 {[%clk
01:30:58]} {[%emt 00:00:33]} 4. Nc3 {[%clk 01:31:04]} {[%emt 00:00:58]} Bg7
{[%clk 01:31:25]} {[%emt 00:00:03]} 5. Nf3 {[%clk 01:30:24]} {[%emt 00:01:10]}
Nge7 {[%clk 01:31:39]} {[%emt 00:00:16]} 6. O-O {[%clk 01:28:50]} {[%emt
00:02:04]} O-O {[%clk 01:29:12]} {[%emt 00:02:58]} 7. d3 {[%clk 01:26:40]}
{[%emt 00:02:40]} d6 {[%clk 01:27:40]} {[%emt 00:02:01]} 8. Rb1 {[%clk
01:23:41]} {[%emt 00:03:30]} a5 {[%clk 01:27:46]} {[%emt 00:00:23]} 9. a3
{[%clk 01:13:26]} {[%emt 00:10:45]} f5 {[%clk 01:25:34]} {[%emt 00:02:41]} 10.
Qc2 {[%clk 01:09:51]} {[%emt 00:04:06]} f4 {[%clk 01:22:54]} {[%emt 00:03:10]}
11. b4 {[%clk 01:00:34]} {[%emt 00:09:47]} axb4 {[%clk 01:18:58]} {[%emt
00:04:26]} 12. axb4 {[%clk 01:00:57]} {[%emt 00:00:07]} Bg4 {[%clk 01:18:38]}
{[%emt 00:00:49]} 13. e3 {[%clk 00:34:23]} {[%emt 00:27:05]} Qd7 {[%clk
01:08:05]} {[%emt 00:11:03]} 14. Bd2 {[%clk 00:19:20]} {[%emt 00:15:34]} h6
{[%clk 01:00:21]} {[%emt 00:08:13]} 15. Nd5 {[%clk 00:12:02]} {[%emt 00:07:49]}
Nf5 {[%clk 00:47:05]} {[%emt 00:13:46]} 16. b5 {[%clk 00:08:08]} {[%emt
00:04:24]} Nd8 {[%clk 00:46:41]} {[%emt 00:00:53]} 17. c5 {[%clk 00:07:20]}
{[%emt 00:01:19]} dxc5 {[%clk 00:43:11]} {[%emt 00:04:00]} 18. Qxc5 {[%clk
00:07:18]} {[%emt 00:00:32]} Ne6 {[%clk 00:42:26]} {[%emt 00:01:13]} 19. Qc4
{[%clk 00:07:00]} {[%emt 00:00:49]} Nd6 {[%clk 00:38:56]} {[%emt 00:04:00]} 20.
Qb3 {[%clk 00:05:42]} {[%emt 00:01:49]} Kh7 {[%clk 00:36:56]} {[%emt 00:02:29]}
21. Bb4 {[%clk 00:04:09]} {[%emt 00:02:03]} Bxf3 {[%clk 00:34:41]} {[%emt
00:02:45]} 22. Bxf3 {[%clk 00:01:36]} {[%emt 00:03:03]} Ng5 {[%clk 00:34:30]}
{[%emt 00:00:41]} 23. Qd1 {[%clk 00:00:38]} {[%emt 00:01:28]} fxg3 {[%clk
00:33:32]} {[%emt 00:01:28]} 24. fxg3 {[%clk 00:00:59]} {[%emt 00:00:09]} Ra2
{[%clk 00:32:57]} {[%emt 00:01:05]} 25. Nc3 {[%clk 00:00:40]} {[%emt 00:00:49]}
Nh3+ {[%clk 00:30:19]} {[%emt 00:03:08]} 26. Kh1 {[%clk 00:01:06]} {[%emt
00:00:04]} Nf2+ {[%clk 00:28:18]} {[%emt 00:02:31]} 27. Rxf2 {[%clk 00:01:33]}
{[%emt 00:00:03]} Rxf2 {[%clk 00:28:43]} {[%emt 00:00:06]} 28. Bg2 {[%clk
00:01:00]} {[%emt 00:01:02]} R8f7 {[%clk 00:27:33]} {[%emt 00:01:39]} 29. Ba3
{[%clk 00:00:33]} {[%emt 00:00:59]} Nf5 {[%clk 00:27:30]} {[%emt 00:00:32]} 30.
Qe1 {[%clk 00:00:34]} {[%emt 00:00:29]} Rc2 {[%clk 00:27:00]} {[%emt 00:01:00]}
31. Be4 {[%clk 00:00:34]} {[%emt 00:00:31]} Rxc3 {[%clk 00:24:42]} {[%emt
00:02:48]} 32. Qxc3 {[%clk 00:00:53]} {[%emt 00:00:10]} Nxg3+ {[%clk 00:25:07]}
{[%emt 00:00:05]} 33. Kg2 {[%clk 00:00:37]} {[%emt 00:00:46]} Nxe4 {[%clk
00:25:30]} {[%emt 00:00:08]} 34. dxe4 {[%clk 00:00:56]} {[%emt 00:00:10]} Qg4+
{[%clk 00:25:54]} {[%emt 00:00:05]} 0-1

[Event "Polofinale MCR junioru 2023"]
[Site "Czech Republic"]
[Date "2023.11.14"]
[Round "4.8"]
[White "Ocelak, Jakub"]
[Black "Tillman, Stanislav"]
[Result "1/2-1/2"]
[TimeControl "90 min per 40 moves + 15 min + 30 sec / move from move 1"]
[WhiteFideId "23707933"]
[BlackFideId "23714247"]
[WhiteElo "2238"]
[BlackElo "2021"]

1. d4 {[%clk 01:30:57]} {[%emt 00:00:02]} Nf6 {[%clk 01:30:10]} {[%emt
00:00:51]} 2. c4 {[%clk 01:29:31]} {[%emt 00:01:55]} e6 {[%clk 01:29:26]}
{[%emt 00:01:14]} 3. Nf3 {[%clk 01:29:55]} {[%emt 00:00:06]} Bb4+ {[%clk
01:29:11]} {[%emt 00:00:46]} 4. Nbd2 {[%clk 01:30:17]} {[%emt 00:00:08]} c5
{[%clk 01:25:50]} {[%emt 00:03:51]} 5. a3 {[%clk 01:20:43]} {[%emt 00:10:04]}
Bxd2+ {[%clk 01:25:27]} {[%emt 00:00:53]} 6. Qxd2 {[%clk 01:19:39]} {[%emt
00:01:33]} cxd4 {[%clk 01:10:50]} {[%emt 00:15:08]} 7. Nxd4 {[%clk 01:07:58]}
{[%emt 00:12:11]} d5 {[%clk 01:06:28]} {[%emt 00:04:51]} 8. e3 {[%clk
00:58:14]} {[%emt 00:10:14]} Nc6 {[%clk 01:01:25]} {[%emt 00:05:33]} 9. cxd5
{[%clk 00:55:13]} {[%emt 00:03:32]} Qxd5 {[%clk 01:00:45]} {[%emt 00:01:10]} 10.
Nb5 {[%clk 00:53:17]} {[%emt 00:02:26]} Qxd2+ {[%clk 01:00:39]} {[%emt
00:00:35]} 11. Bxd2 {[%clk 00:53:31]} {[%emt 00:00:16]} O-O {[%clk 01:00:46]}
{[%emt 00:00:20]} 12. Be2 {[%clk 00:39:25]} {[%emt 00:14:39]} Rd8 {[%clk
00:55:21]} {[%emt 00:05:55]} 13. Rd1 {[%clk 00:37:03]} {[%emt 00:02:52]} a6
{[%clk 00:50:11]} {[%emt 00:05:40]} 14. Nc3 {[%clk 00:36:57]} {[%emt 00:00:36]}
b5 {[%clk 00:44:50]} {[%emt 00:05:51]} 15. Bf3 {[%clk 00:30:05]} {[%emt
00:07:23]} Bd7 {[%clk 00:36:32]} {[%emt 00:08:47]} 16. Ne4 {[%clk 00:28:21]}
{[%emt 00:02:14]} Nxe4 {[%clk 00:34:55]} {[%emt 00:02:08]} 17. Bxe4 {[%clk
00:28:49]} {[%emt 00:00:01]} Rab8 {[%clk 00:33:52]} {[%emt 00:01:33]} 18. Bc3
{[%clk 00:26:50]} {[%emt 00:02:29]} a5 {[%clk 00:22:56]} {[%emt 00:11:26]} 19.
b4 {[%clk 00:15:50]} {[%emt 00:11:30]} axb4 20. axb4 {[%clk 00:16:19]} f6
{[%clk 00:17:53]} {[%emt 00:02:20]} 21. Rd6 {[%clk 00:14:15]} {[%emt 00:02:34]}
Rbc8 {[%clk 00:14:12]} {[%emt 00:04:12]} 22. Ke2 {[%clk 00:11:59]} {[%emt
00:02:45]} Ne7 {[%clk 00:13:08]} {[%emt 00:01:34]} 23. Bd4 {[%clk 00:09:38]}
{[%emt 00:02:51]} Nd5 {[%clk 00:09:50]} {[%emt 00:03:48]} 24. Rb1 {[%clk
00:07:41]} {[%emt 00:02:27]} Kf8 {[%clk 00:05:07]} {[%emt 00:05:14]} 25. Rb3
{[%clk 00:06:46]} {[%emt 00:01:25]} Rc6 {[%clk 00:04:33]} {[%emt 00:01:03]} 26.
Bc5 {[%clk 00:06:16]} {[%emt 00:01:01]} Rxd6 {[%clk 00:04:56]} {[%emt
00:00:07]} 27. Bxd6+ {[%clk 00:06:43]} {[%emt 00:00:03]} Kf7 {[%clk 00:05:06]}
{[%emt 00:00:20]} 28. Bxd5 {[%clk 00:02:07]} {[%emt 00:05:06]} exd5 {[%clk
00:05:27]} {[%emt 00:00:08]} 29. Bc5 {[%clk 00:01:13]} {[%emt 00:01:25]} Ra8
{[%clk 00:05:32]} {[%emt 00:00:25]} 30. Rb2 {[%clk 00:01:11]} {[%emt 00:00:32]}
Ra3 {[%clk 00:04:27]} {[%emt 00:01:35]} 31. f3 {[%clk 00:01:24]} {[%emt
00:00:17]} Bf5 {[%clk 00:02:57]} {[%emt 00:02:00]} 32. Rd2 {[%clk 00:01:15]}
{[%emt 00:00:38]} Ke6 {[%clk 00:03:15]} {[%emt 00:00:11]} 33. Bf8 {[%clk
00:01:14]} {[%emt 00:00:32]} g6 {[%clk 00:03:33]} {[%emt 00:00:12]} 34. Kf2
{[%clk 00:00:51]} {[%emt 00:00:53]} Bd3 {[%clk 00:02:26]} {[%emt 00:01:37]} 35.
Bc5 {[%clk 00:01:11]} {[%emt 00:00:10]} Bc4 {[%clk 00:02:48]} {[%emt 00:00:08]}
36. Bd4 {[%clk 00:00:54]} {[%emt 00:00:48]} Ra2 {[%clk 00:02:02]} {[%emt
00:01:15]} 37. Rxa2 {[%clk 00:01:19]} {[%emt 00:00:05]} Bxa2 {[%clk 00:02:27]}
{[%emt 00:00:05]} 38. g4 {[%clk 00:01:19]} {[%emt 00:00:30]} f5 {[%clk
00:02:24]} {[%emt 00:00:33]} 39. h3 {[%clk 00:01:04]} {[%emt 00:00:45]} Bb3
{[%clk 00:01:37]} {[%emt 00:01:16]} 40. Kg3 {[%clk 00:01:01]} {[%emt 00:00:33]}
fxg4 {[%clk 00:00:51]} {[%emt 00:01:17]} 41. hxg4 {[%clk 00:14:07]} {[%emt
00:02:54]} Bd1 {[%clk 00:15:49]} {[%emt 00:01:02]} 42. Bg7 {[%clk 00:13:40]}
{[%emt 00:00:57]} h5 {[%clk 00:14:10]} {[%emt 00:02:09]} 43. gxh5 {[%clk
00:13:50]} {[%emt 00:00:20]} gxh5 {[%clk 00:14:34]} {[%emt 00:00:06]} 44. Bh8
{[%clk 00:08:54]} {[%emt 00:05:26]} 1/2-1/2

[Event "Polofinale MCR junioru 2023"]
[Site "Czech Republic"]
[Date "2023.11.14"]
[Round "4.9"]
[White "Mametev, Artem"]
[Black "Prazak, Daniel"]
[Result "0-1"]
[TimeControl "90 min per 40 moves + 15 min + 30 sec / move from move 1"]
[WhiteFideId "23710195"]
[BlackFideId "23709456"]
[WhiteElo "2024"]
[BlackElo "2103"]

1. e4 {[%clk 01:26:09]} {[%emt 00:04:51]} e5 {[%clk 01:30:28]} {[%emt
00:00:27]} 2. Nf3 {[%clk 01:26:32]} {[%emt 00:00:11]} Nc6 {[%clk 01:30:46]}
{[%emt 00:00:13]} 3. Nc3 {[%clk 01:26:14]} {[%emt 00:00:48]} Nf6 {[%clk
01:31:03]} {[%emt 00:00:14]} 4. g3 {[%clk 01:26:21]} {[%emt 00:00:22]} d5
{[%clk 01:28:08]} {[%emt 00:03:26]} 5. exd5 {[%clk 01:26:45]} {[%emt 00:00:05]}
Nxd5 {[%clk 01:28:28]} {[%emt 00:00:11]} 6. Bg2 {[%clk 01:26:01]} {[%emt
00:01:14]} Nxc3 {[%clk 01:28:43]} {[%emt 00:00:14]} 7. bxc3 {[%clk 01:26:25]}
{[%emt 00:00:07]} Bd6 {[%clk 01:28:57]} {[%emt 00:00:16]} 8. O-O {[%clk
01:25:46]} {[%emt 00:01:08]} O-O {[%clk 01:29:15]} {[%emt 00:00:12]} 9. d3
{[%clk 01:24:11]} {[%emt 00:02:05]} Bf5 {[%clk 01:25:57]} {[%emt 00:03:49]} 10.
Rb1 {[%clk 01:17:22]} {[%emt 00:07:19]} Rb8 {[%clk 01:24:01]} {[%emt 00:02:26]}
11. Be3 {[%clk 00:57:40]} {[%emt 00:20:11]} Qd7 {[%clk 01:23:12]} {[%emt
00:01:19]} 12. Ng5 {[%clk 00:50:01]} {[%emt 00:08:09]} Be7 {[%clk 01:06:43]}
{[%emt 00:16:59]} 13. Ne4 {[%clk 00:39:39]} {[%emt 00:10:53]} Bh3 {[%clk
01:06:15]} {[%emt 00:00:58]} 14. Nc5 {[%clk 00:38:54]} {[%emt 00:01:15]} Bxc5
{[%clk 01:06:00]} {[%emt 00:00:45]} 15. Bxh3 {[%clk 00:38:38]} {[%emt
00:00:45]} Qxh3 {[%clk 01:06:22]} {[%emt 00:00:08]} 16. Bxc5 {[%clk 00:38:54]}
{[%emt 00:00:15]} Rfe8 {[%clk 01:05:05]} {[%emt 00:01:47]} 17. f3 {[%clk
00:28:46]} {[%emt 00:10:38]} b6 {[%clk 01:03:00]} {[%emt 00:02:35]} 18. Be3
{[%clk 00:27:19]} {[%emt 00:01:55]} Qe6 {[%clk 01:00:45]} {[%emt 00:02:47]} 19.
c4 {[%clk 00:26:20]} {[%emt 00:01:29]} Rbd8 {[%clk 00:59:43]} {[%emt 00:01:31]}
20. Re1 {[%clk 00:23:30]} {[%emt 00:03:20]} Ne7 {[%clk 00:52:05]} {[%emt
00:08:09]} 21. Qe2 {[%clk 00:19:10]} {[%emt 00:04:50]} c5 {[%clk 00:47:32]}
{[%emt 00:05:03]} 22. Qf2 {[%clk 00:18:36]} {[%emt 00:01:03]} Qc6 {[%clk
00:41:26]} {[%emt 00:06:35]} 23. Bd2 {[%clk 00:15:18]} {[%emt 00:03:49]} Nf5
{[%clk 00:38:43]} {[%emt 00:03:14]} 24. Bc3 {[%clk 00:15:21]} {[%emt 00:00:27]}
Nd4 {[%clk 00:37:25]} {[%emt 00:01:47]} 25. Bxd4 {[%clk 00:15:25]} {[%emt
00:00:26]} exd4 {[%clk 00:37:48]} {[%emt 00:00:08]} 26. Rxe8+ {[%clk 00:14:35]}
{[%emt 00:01:19]} Rxe8 {[%clk 00:37:31]} {[%emt 00:00:47]} 27. Re1 {[%clk
00:11:25]} {[%emt 00:03:41]} h6 {[%clk 00:24:39]} {[%emt 00:13:22]} 28. f4
{[%clk 00:01:57]} {[%emt 00:09:58]} Qa4 {[%clk 00:24:04]} {[%emt 00:01:05]} 29.
f5 {[%clk 00:01:44]} {[%emt 00:00:43]} f6 {[%clk 00:15:45]} {[%emt 00:08:50]}
30. Re6 {[%clk 00:00:41]} {[%emt 00:01:32]} Rxe6 {[%clk 00:06:43]} {[%emt
00:09:32]} 31. fxe6 {[%clk 00:01:07]} {[%emt 00:00:04]} Qc6 {[%clk 00:07:06]}
{[%emt 00:00:06]} 32. Qf5 {[%clk 00:01:09]} {[%emt 00:00:29]} Kf8 {[%clk
00:07:05]} {[%emt 00:00:31]} 33. Qg4 {[%clk 00:00:50]} {[%emt 00:00:50]} Qc7
{[%clk 00:02:04]} {[%emt 00:05:30]} 34. Qe4 {[%clk 00:00:48]} {[%emt 00:00:32]}
Ke7 {[%clk 00:01:38]} {[%emt 00:00:56]} 35. Qg4 {[%clk 00:00:50]} {[%emt
00:00:29]} g5 {[%clk 00:01:40]} {[%emt 00:00:28]} 36. Qe4 {[%clk 00:00:40]}
{[%emt 00:00:39]} Qe5 {[%clk 00:01:30]} {[%emt 00:00:40]} 37. Qb7+ {[%clk
00:00:39]} {[%emt 00:00:31]} Kxe6 {[%clk 00:01:55]} {[%emt 00:00:05]} 38. Kf1
{[%clk 00:00:35]} {[%emt 00:00:35]} Qe3 {[%clk 00:00:37]} {[%emt 00:01:49]} 39.
Qd5+ {[%clk 00:00:45]} {[%emt 00:00:19]} Ke7 {[%clk 00:01:03]} {[%emt
00:00:05]} 40. Qb7+ {[%clk 00:01:09]} {[%emt 00:00:05]} Kf8 {[%clk 00:00:57]}
{[%emt 00:00:36]} 41. Qb8+ {[%clk 00:15:20]} {[%emt 00:01:48]} Kg7 {[%clk
00:16:34]} {[%emt 00:00:24]} 42. Qxa7+ {[%clk 00:12:44]} {[%emt 00:03:06]} Kg6
{[%clk 00:16:57]} {[%emt 00:00:07]} 43. Qa8 {[%clk 00:07:47]} {[%emt 00:05:27]}
f5 {[%clk 00:11:34]} {[%emt 00:05:53]} 44. Qa4 {[%clk 00:03:22]} {[%emt
00:04:55]} Kh5 {[%clk 00:11:17]} {[%emt 00:00:47]} 45. Kg2 {[%clk 00:01:37]}
{[%emt 00:02:15]} Qe2+ {[%clk 00:11:22]} {[%emt 00:00:25]} 46. Kg1 {[%clk
00:02:03]} {[%emt 00:00:03]} Kg4 {[%clk 00:11:29]} {[%emt 00:00:23]} 47. Qc6
{[%clk 00:02:15]} {[%emt 00:00:19]} Qd1+ {[%clk 00:11:40]} {[%emt 00:00:19]} 48.
Kg2 {[%clk 00:02:35]} {[%emt 00:00:10]} Qxc2+ {[%clk 00:12:02]} {[%emt
00:00:08]} 49. Kg1 {[%clk 00:03:03]} {[%emt 00:00:02]} Qb1+ {[%clk 00:12:14]}
{[%emt 00:00:18]} 50. Kg2 {[%clk 00:03:29]} {[%emt 00:00:04]} Qxa2+ {[%clk
00:12:40]} {[%emt 00:00:04]} 51. Kg1 {[%clk 00:03:55]} {[%emt 00:00:03]} Qb1+
{[%clk 00:13:03]} {[%emt 00:00:08]} 52. Kf2 {[%clk 00:03:54]} {[%emt 00:00:31]}
Qc2+ {[%clk 00:13:27]} {[%emt 00:00:07]} 53. Kg1 {[%clk 00:03:35]} {[%emt
00:00:48]} Qd1+ {[%clk 00:13:25]} {[%emt 00:00:31]} 54. Kg2 {[%clk 00:03:58]}
{[%emt 00:00:08]} Qe2+ {[%clk 00:13:49]} {[%emt 00:00:06]} 55. Kg1 {[%clk
00:04:22]} {[%emt 00:00:05]} h5 {[%clk 00:14:02]} {[%emt 00:00:17]} 56. Qg6
{[%clk 00:02:29]} {[%emt 00:02:23]} Qe3+ {[%clk 00:14:24]} {[%emt 00:00:08]} 57.
Kg2 {[%clk 00:02:44]} {[%emt 00:00:15]} Qf3+ {[%clk 00:14:49]} {[%emt
00:00:05]} 58. Kg1 {[%clk 00:03:04]} {[%emt 00:00:11]} Kh3 {[%clk 00:15:13]}
{[%emt 00:00:05]} 0-1

[Event "Polofinale MCR junioru 2023"]
[Site "Czech Republic"]
[Date "2023.11.14"]
[Round "4.10"]
[White "Lihotsky, Lukas"]
[Black "Svacina, Tobias"]
[Result "1-0"]
[TimeControl "90 min per 40 moves + 15 min + 30 sec / move from move 1"]
[WhiteFideId "23727004"]
[BlackFideId "385859"]
[WhiteElo "2100"]
[BlackElo "1941"]

1. d4 {[%clk 01:30:49]} {[%emt 00:00:10]} Nf6 {[%clk 01:29:25]} {[%emt
00:01:36]} 2. c4 {[%clk 01:31:14]} {[%emt 00:00:05]} g6 {[%clk 01:28:50]}
{[%emt 00:01:04]} 3. Nc3 {[%clk 01:31:40]} {[%emt 00:00:04]} Bg7 {[%clk
01:28:23]} {[%emt 00:00:58]} 4. e4 {[%clk 01:32:03]} {[%emt 00:00:07]} d6
{[%clk 01:27:40]} {[%emt 00:01:12]} 5. Be2 {[%clk 01:32:28]} {[%emt 00:00:06]}
O-O {[%clk 01:27:05]} {[%emt 00:01:05]} 6. Nf3 {[%clk 01:32:53]} {[%emt
00:00:05]} e5 {[%clk 01:26:35]} {[%emt 00:01:00]} 7. O-O {[%emt 00:00:09]} exd4
{[%clk 01:26:15]} {[%emt 00:00:47]} 8. Nxd4 {[%clk 01:33:38]} {[%emt 00:00:09]}
Re8 {[%clk 01:26:19]} {[%emt 00:00:26]} 9. f3 {[%clk 01:34:01]} {[%emt
00:00:06]} c6 {[%clk 01:26:28]} {[%emt 00:00:21]} 10. Nc2 {[%clk 01:34:19]}
{[%emt 00:00:13]} Na6 {[%clk 01:25:38]} {[%emt 00:01:20]} 11. Kh1 {[%clk
01:34:36]} {[%emt 00:00:13]} Nh5 {[%clk 01:21:50]} {[%emt 00:04:17]} 12. g4
{[%clk 01:24:50]} {[%emt 00:10:16]} Nf6 {[%clk 01:22:02]} {[%emt 00:00:19]} 13.
Bf4 {[%clk 01:21:13]} {[%emt 00:04:07]} h5 {[%clk 01:15:10]} {[%emt 00:07:22]}
14. g5 {[%clk 01:19:17]} {[%emt 00:02:25]} Nh7 {[%clk 01:14:50]} {[%emt
00:00:50]} 15. Rg1 {[%clk 01:12:39]} {[%emt 00:07:09]} Qb6 {[%clk 01:08:38]}
{[%emt 00:06:42]} 16. Qd2 {[%clk 01:06:48]} {[%emt 00:06:20]} Be5 {[%clk
00:57:57]} {[%emt 00:11:11]} 17. Be3 {[%clk 01:00:07]} {[%emt 00:07:12]} Qd8
{[%clk 00:53:29]} {[%emt 00:04:58]} 18. f4 {[%clk 00:36:29]} {[%emt 00:24:08]}
Bg7 {[%clk 00:53:46]} {[%emt 00:00:13]} 19. Bd4 {[%clk 00:33:25]} {[%emt
00:03:34]} Nc7 {[%clk 00:45:54]} {[%emt 00:08:22]} 20. f5 {[%clk 00:27:11]}
{[%emt 00:06:43]} Be5 {[%clk 00:43:26]} {[%emt 00:02:58]} 21. Raf1 {[%clk
00:18:53]} {[%emt 00:08:48]} Nf8 {[%clk 00:39:00]} {[%emt 00:04:57]} 22. Bxe5
{[%clk 00:17:18]} {[%emt 00:02:05]} Rxe5 {[%clk 00:37:16]} {[%emt 00:02:14]} 23.
Qf4 {[%clk 00:17:18]} {[%emt 00:00:29]} gxf5 {[%clk 00:34:05]} {[%emt
00:03:41]} 24. g6 {[%clk 00:15:13]} {[%emt 00:02:35]} fxg6 {[%clk 00:32:20]}
{[%emt 00:02:16]} 25. Bxh5 {[%clk 00:14:10]} {[%emt 00:01:33]} Kf7 {[%clk
00:29:57]} {[%emt 00:02:52]} 26. Qh6 {[%clk 00:10:19]} {[%emt 00:04:21]} Qf6
{[%clk 00:28:46]} {[%emt 00:01:42]} 27. Be2 {[%clk 00:09:06]} {[%emt 00:01:43]}
Qg7 {[%clk 00:24:23]} {[%emt 00:04:53]} 28. Qh4 {[%clk 00:08:36]} {[%emt
00:00:59]} Qh7 {[%clk 00:19:11]} {[%emt 00:05:43]} 29. Qg3 {[%clk 00:08:34]}
{[%emt 00:00:31]} Ne8 {[%clk 00:18:43]} {[%emt 00:00:59]} 30. Nd4 {[%clk
00:07:58]} {[%emt 00:01:05]} Nf6 {[%clk 00:12:23]} {[%emt 00:06:50]} 31. Nf3
{[%clk 00:07:22]} {[%emt 00:01:06]} Ne6 {[%clk 00:12:25]} {[%emt 00:00:29]} 32.
Nxe5+ {[%clk 00:07:17]} {[%emt 00:00:34]} dxe5 {[%clk 00:12:51]} {[%emt
00:00:04]} 33. exf5 {[%clk 00:07:17]} {[%emt 00:00:31]} gxf5 {[%clk 00:12:21]}
{[%emt 00:00:59]} 34. Qxe5 {[%clk 00:07:14]} {[%emt 00:00:34]} f4 {[%clk
00:11:40]} {[%emt 00:01:10]} 35. Bf3 {[%clk 00:06:23]} {[%emt 00:01:21]} Bd7
{[%clk 00:11:47]} {[%emt 00:00:23]} 36. Ne4 {[%clk 00:06:06]} {[%emt 00:00:48]}
Nxe4 {[%clk 00:11:22]} {[%emt 00:00:55]} 37. Bxe4 {[%clk 00:06:12]} {[%emt
00:00:24]} Qh4 {[%clk 00:11:34]} {[%emt 00:00:18]} 38. Bf5 {[%clk 00:04:57]}
{[%emt 00:01:45]} 1-0